Cogmind - Beta 14 @@@ ROGUE MODE // 2024.10.31 @ 19:39:14 Player: toydarian Result: Destroyed by G-47 Trooper with Particle Gun Performance ------------- Evolutions (0) 0 Regions Visited (1) 200 Robots Destroyed (21) 105 Value Destroyed (546) 546 Prototype IDs (0) 0 Alien Tech Used (0) 0 Bonus (0) 0 TOTAL SCORE: 851 Bonus ------- None Cogmind --------- Core Integrity 0/250 Matter 288/300 Energy 250/250 System Corruption 0% Temperature Cool (18) Movement Treading (240) Ox1 Location -10/Materials Parts ------- > --- POWER (1) -------- Ion Engine > --- PROPULSION (2) --- Light Treads Light Treads > --- UTILITY (2) ------ High-capacity Storage Unit Weapon Shielding > --- WEAPON (2) ------- Light Assault Rifle Light Assault Rifle > --- INVENTORY (20) --- Ion Engine Light Ion Engine Light Treads Aluminum Leg Aluminum Leg Aluminum Leg Aluminum Leg Aluminum Leg Aluminum Leg Aluminum Leg Aluminum Leg Aluminum Leg High-capacity Matter Pod (200) Structural Scanner Peak State ------------ > --- POWER ------------ Light Ion Engine > --- PROPULSION ------- Aluminum Leg Aluminum Leg > --- UTILITY ---------- Small Storage Unit High-capacity Storage Unit > --- WEAPON ----------- Assault Rifle Light Assault Rifle > --- INVENTORY -------- Ion Engine Light Ion Engine Light Treads Light Treads Aluminum Leg Aluminum Leg Small Storage Unit Medium Matter Pod Light Assault Rifle Light Assault Rifle [Rating: 8] Favorites ----------- Power Ion Engine Engine Ion Engine Propulsion Aluminum Leg Treads Light Treads Leg Aluminum Leg Utility High-capacity Storage Unit Storage High-capacity Storage Unit Protection Weapon Shielding Weapon Light Assault Rifle Ballistic Gun Light Assault Rifle Build | -11 -10 ------- Run | Yrd Mat Slots Evolved . | . . Power . | . . Propulsion . | . . Utility . | . . Weapon . | . . Parts Attached 25 | 7 18 Power 4 | 1 3 Engine 4 | 1 3 Core . | . . Reactor . | . . Propulsion 11 | 2 9 Treads 3 | . 3 Leg 8 | 2 6 Wheel . | . . Hover . | . . Flight . | . . Utility 5 | 2 3 Device . | . . Storage 3 | 2 1 Processor . | . . Hackware . | . . Protection 2 | . 2 Artifact . | . . Weapon 5 | 2 3 Energy Gun . | . . Energy Cannon . | . . Ballistic Gun 5 | 2 3 Ballistic Cannon . | . . Launcher . | . . Special Weapon . | . . Impact Weapon . | . . Slashing Weapon . | . . Piercing Weapon . | . . Special Melee Weapon . | . . Unidentified Prototypes . | . . Parts Lost 9 | . 9 Power 3 | . 3 Propulsion 2 | . 2 Utility 1 | . 1 Weapon 3 | . 3 Highest Loss Streak 3 | . 3 To Critical Strikes . | . . Average Slot Usage (%) 95 | . 95 Engine 14 | . 14 Treads 3 | . 3 Leg 24 | . 24 Storage 20 | . 20 Protection 4 | . 4 Ballistic Gun 26 | . 26 Peak Build Rating 8 | 7 8 Average Rating 7 | 5 7 On Entrance 3 | . 7 Naked Turns . | . . Heaviest Build 52 | 16 52 Greatest Support 40 | 20 40 Greatest Overweight (x) 5 | 1 5 Average Overweight (x) 1 | . 1 Largest Inventory Capacity 20 | 8 20 Average Capacity 19 | 7 19 Most Carried 15 | 4 15 Average Carried 10 | 3 10 Final Capacity 20 | 8 20 Final Carried 14 | 4 14 Class Distribution -------------------- 100% | Mutant Dominant Class ---------------- Mutant | -10/Materials Resources | -11 -10 ----------- Run | Yrd Mat Matter Collected 948 | 277 671 Remotely . | . . Salvage Created 811 | 82 729 Parts 51 | 2 49 Haulers Intercepted 1 | . 1 Recyclers Shooed . | . . Parts Field Recycled . | . . Retrieved Matter . | . . Parts Self-Destructed . | . . Prevented . | . . Kills | -11 -10 ------- Run | Yrd Mat Combat Hostiles Destroyed 16 | . 16 Guns 16 | . 16 Classes Destroyed 6 | 1 5 Builder 1 | . 1 Hauler 1 | . 1 Recycler 2 | 1 1 Operator 1 | . 1 Swarmer 3 | . 3 Grunt 13 | . 13 Best Kill Streak 5 | 1 5 Combat Bots Only 5 | . 5 Max Kills in Single Turn 1 | 1 1 Gunslinging . | . . Exploded . | . . Melee . | . . Uniques/NPCs Destroyed . | . . Combat | -11 -10 -------- Run | Yrd Mat Hostile Shots Fired 143 | . 143 Missed 33 | . 33 Damage Taken 1486 | . 1486 Core 266 | . 266 Absorbed by Shields . | . . Redirected to Shielding 63 | . 63 Core Remaining (%) 100 | 100 . Volleys Fired 82 | 3 79 Largest 2 | 2 2 Hottest 40 | 40 40 Shots Fired 154 | 6 148 Gun 154 | 6 148 Cannon . | . . Launcher . | . . Special . | . . Kinetic 154 | 6 148 Thermal . | . . Explosive . | . . Electromagnetic . | . . Robot Hit Streak 15 | 4 15 Robot Miss Streak 4 | 1 4 Penetration Max . | . . Secondary Targets 1 | . 1 Max Gunslinging Chain 1 | . 1 Shots Hit Robots 98 | 4 94 Core Hits 47 | 2 45 Critical Kills . | . . Critical Parts Destroyed 1 | . 1 Critical Strikes 1 | . 1 Destroy 1 | . 1 Melee Attacks . | . . Impact . | . . Slashing . | . . Piercing . | . . Sneak Attacks . | . . Combat Hostiles . | . . Follow-up Attacks . | . . Damage Inflicted 911 | 44 867 Guns 911 | 44 867 Cannons . | . . Explosions . | . . Melee . | . . Ramming . | . . Kinetic 911 | 44 867 Thermal . | . . Explosive . | . . Electromagnetic . | . . Impact . | . . Slashing . | . . Piercing . | . . Highest Corruption . | . . Average Corruption . | . . Corruption Purged . | . . Corruption Blocked . | . . Overload Shots . | . . Overflow Damage . | . . Projectiles . | . . Explosions . | . . Melee . | . . Knockbacks . | . . Impact . | . . Kinetic . | . . Secondary . | . . Self-Inflicted Damage . | . . Shots . | . . Rammed . | . . Targets Rammed . | . . Kicked . | . . Crushed . | . . Highest Temperature 18 | . 18 Average Temperature 7 | . 7 Received Heat Transfer 639 | . 639 Siege Activations . | . . Robots Corrupted . | . . Combat Hostiles . | . . Parts Fried . | . . Impact Corruptions . | . . Robots Melted . | . . Combat Hostiles . | . . Parts Melted . | . . Heat Transferred . | . . Parts Sabotaged . | . . Parts Stolen . | . . Parts Stripped . | . . Power Chain Reactions . | . . Alert | -11 -10 ------- Run | Yrd Mat Peak Influence 193 | 5 193 Initial 3 | . 3 Average 64 | . 68 Maximum Alert Level . | . . Low Security (%) 100 | 100 100 Level 1 . | . . Level 2 . | . . Level 3 . | . . Level 4 . | . . Level 5 . | . . High Security . | . . Max Security . | . . Squads Dispatched 5 | . 5 Investigation 2 | . 2 Extermination . | . . Reinforcement 3 | . 3 Assault . | . . Garrison . | . . Intercept . | . . Searches Triggered . | . . Construction Impeded . | . . Haulers Reinforced . | . . Active Scanning Responses . | . . Cargo Convoy Interrupts . | . . Stealth | -11 -10 --------- Run | Yrd Mat Distress Signals 2 | . 2 Communications Jammed . | . . Distress Signals . | . . Times Spotted 39 | . 39 Peak Tracking Total 5 | . 5 Tactical Retreats 6 | . 6 Traps | -11 -10 ------- Run | Yrd Mat Traps Triggered 2 | . 2 Indirectly . | . . Trap Hack Attempts . | . . Triggered . | . . Disarmed . | . . Reprogrammed 3 | . 3 Reused 3 | . 3 Traps Extracted . | . . Installed . | . . Triggered 3 | . 3 Machines | -11 -10 ---------- Run | Yrd Mat Machines Disabled . | . . Max in Single Turn . | . . Machines Repaired . | . . Machines Dismantled . | . . Machines Sabotaged . | . . Overloaded Fab Kills . | . . Hacking | -11 -10 --------- Run | Yrd Mat Machines Accessed 3 | . 3 Terminals 3 | . 3 Fabricators . | . . Repair Stations . | . . Recycling Units . | . . Scanalyzers . | . . Garrison Access . | . . Total Hacks 7 | . 7 Successful 3 | . 3 Failed 4 | . 4 Catastrophic 1 | . 1 Database Lockouts . | . . Manual 3 | . 3 Terminals 7 | . 7 Fabricators . | . . Repair Stations . | . . Recycling Units . | . . Scanalyzers . | . . Garrison Access . | . . Terminal Hacks 3 | . 3 Locate Traps 2 | . 2 Reprogram Traps 1 | . 1 Fabricator Hacks . | . . Repair Station Hacks . | . . Recycling Unit Hacks . | . . Scanalyzer . | . . Garrison Access Hacks . | . . Unauthorized Hacks . | . . Terminals . | . . Fabricators . | . . Repair Stations . | . . Recycling Units . | . . Scanalyzers . | . . Garrison Access . | . . Data Cores Recovered . | . . Used . | . . Hacking Detections 3 | . 3 Full Trace Events 1 | . 1 Feedback Events . | . . Feedback Blocked . | . . Robot Schematics Acquired . | . . Robots Built . | . . Authchips . | . . Time . | . . Total Robot Build Rating . | . . Part Schematics Acquired . | . . Parts Built . | . . Authchips . | . . Time . | . . Total Part Build Rating . | . . Parts Repaired . | . . Time . | . . Parts Recycled . | . . Recycled Matter . | . . Retrieved Matter . | . . Retrieved Components . | . . Parts Scanalyzed . | . . Part Schematics Acquired . | . . Parts Damaged . | . . Bothacking | -11 -10 ------------ Run | Yrd Mat Used RIF Installer . | . . Robots Hacked . | . . Non-combat . | . . Combat . | . . Robot Hacks Applied . | . . Relay Couplers Released . | . . Fabnet Peak Effective % . | . . Robots Rewired . | . . Allies Hacked . | . . Hacks Repelled . | . . Allies | -11 -10 -------- Run | Yrd Mat Total Allies . | . . Largest Group . | . . Highest-Rated Group . | . . Highest-Rated Ally . | . . Total Orders . | . . Ally Attacks . | . . Total Damage . | . . Kills . | . . Allies Corrupted . | . . Allies Melted . | . . Intel | -11 -10 ------- Run | Yrd Mat Robot Analysis Total . | . . Derelict Logs Recovered . | . . Drone Launches . | . . Drone Recoveries . | . . Exploration | -11 -10 ------------- Run | Yrd Mat Turns Passed 1914 | 99 1815 Spaces Moved 668 | 67 601 Core 8 | 8 . Treads 86 | . 86 Legs 574 | 59 515 Wheels . | . . Hover . | . . Flight . | . . Fastest Speed 50 | 50 120 Average Speed 240 | 114 254 Slowest Speed 470 | 190 470 Overloaded Moves . | . . Propulsion Burnouts . | . . Robots Hopped . | . . Cave-ins Triggered . | . . Exploration Rate (%) 45 | 4 87 Regions Visited 1 Branch Regions . Pre-discovered Areas . | . . Known Exits Taken . | . . Unknown Exits Taken 1 | 1 . Scrap Searched . | . . Spaces Dug . | . . Terrain Destroyed . | . . Melee . | . . Projectile . | . . AOE . | . . Terrain Rammed . | . . Walls Destroyed . | . . Machines Disabled . | . . Actions | -11 -10 --------- Run | Yrd Mat Total 836 | 80 756 Wait 36 | . 36 Move 667 | 66 601 Hop . | . . Pick Up 21 | 4 17 Fast Attach 10 | 7 3 Attach 8 | . 8 Detach 2 | . 2 Swap 7 | . 7 Drop 3 | . 3 Fire 82 | 3 79 Melee . | . . Ram . | . . Kick . | . . Crush . | . . Escape Stasis . | . . Rewire . | . . Trap . | . . Miscellaneous . | . . Route ------- -11/Scrapyard -10/Materials (discovered 5 exits: [*Mat x2] / [*Min x2] / [*Sub]) History --------- Turn | Location | Event 8 | -11/Scrapyard | Discovered new exit (range 15) 100 | -11/Scrapyard | Entered Materials 308 | -10/Materials | Build established: Mutant 345 | -10/Materials | Discovered new exit (range 14) 745 | -10/Materials | Core integrity fell below 50% 1053 | -10/Materials | Discovered new exit (range 16) 1357 | -10/Materials | Discovered new exit (range 8) 1625 | -10/Materials | Discovered new exit (range 16) 1652 | -10/Materials | Core integrity fell below 20% 1722 | -10/Materials | Lost 3 parts (1p1u1w) 1783 | -10/Materials | Discovered new exit (range 16) 1915 | -10/Materials | Destroyed by G-47 Trooper with Particle Gun Last Messages --------------- 01752_ U-05 Engineer lays Concrete. 01753_ R-06 Scavenger collects Aluminum Leg. 01754_ K-01 Serf collects debris. 01755_ The unstable cave ceiling collapses. 01755_ U-05 Engineer lays Concrete. 01756_ K-01 Serf collects debris. 01756_ U-05 Engineer lays Concrete. 01757_ K-01 Serf collects debris. 01758_ U-05 Engineer lays Concrete. 01759_ K-01 Serf collects debris. 01759_ U-05 Engineer lays Concrete. 01770_ K-01 Serf collects debris. 01783_ EXIT=FOUND 01784_ O-16 Technician: "IFF HANDSHAKE FAILED. SECURING TERMINAL." 01810_ ALERT: Hostiles spotted, dispatching reinforcements to Terminal M006. 01821_ Acquired 10 matter. 01877_ Acquired Lgt. Assault Rifle. 01885_ Acquired Ion Engine. 01898_ G-34 Mercenary misfires. Map ----- +----------------------------------------------------+ | ###????? | | #????? | | #" #????? | | ###### #????? | | #######+##????# ##### #????? | | #?????????????# """ #???? #????? | | #??"""????????# """ #?????#????? | | #??"""????????# """ #??????????? | | #??"""????????# """ #?###+###### | | #?? ????????# #?#! # | | #?? ????????# #?# """# | | #?? ????????# """ ### """# | | #??#+######???# """ # """# | | #### # T #???# """ + """# | | # #???# """ # ! """# | | # #???# # # | | " + #???# # # | | " # #???# """ #! ! = # | | "" # #???# """ ########## | | # #???# """ #????????? | | # #???# ##????????? | | # #???## #?????????? | | ######?#### #?????????? | | #?????##! ########### | | #?????#! # # | | #?????#! !! #@ # | | #?????#! !% # # | | ###+######?#! # # | | # #?##! + """ """ # | | # #?#####+#+## < #g""" """ # | | # #?# # # """ """ # | | # """ #?#""" ##### # | | # """ #?#""" #???########### | | # """ #?#""" #?????????????? | | # #?#""" ! #?????????????? | | # #?# #?????????????? | | ?#########?##########?????????????? | | | | | | | | | | | | | | | | | | | | | | | | | | | +----------------------------------------------------+ Best States ------------- Heat Dissipation 25 Energy Generation 10 Energy Capacity 250 Matter Stores 300 Matter Capacity 300 Sight Range 16 Terrain Scan Density 10 Weapon Shielding 33 Evasion (%) 55 Recoil Reduction 2 Item Schematics ----------------- None Robot Schematics ------------------ None Fabricated ------------ Nothing Alien Tech Used ----------------- None Achievements -------------- None Challenges ------------ None Game ------ Seed PointArmoredBlaster Manual? 0 Play Time 00:15:50 Cumulative 36.0 hours Start 2024.10.31 @ 19:28:51 End 2024.10.31 @ 19:39:14 Sessions 1 Manual Loads 0 Difficulty Rogue Special Mode None Game No. 49 Rogue 42 Adventurer 0 Explorer 7 Win Type - Total 1 Types 1/0/0/0/0/0/0/0/0 Lore% 12 Gallery% 23 Achievement% 27 Wizard Run 0 Options --------- Layout 0 ASCII 0 Keyboard 0 Movement Mouse Keybinds 0 Fullscreen 1 Font 24/Terminus Map View 76x50 Zoom Use 0% Tactical HUD 1 Map Filters NONE Filters NONE Steam 1 RUN: 93757eff-001e-4dfa-b84d-00efcda01b11